fUSD/lending_fUSD_20250522
["ID","MTS","AMOUNT","RATE_DAILY","PERIOD"]
[362053283,1747950646674,-238.93356041,0.00033391,11]
[362053285,1747950646684,-773.6947103,0.00033391,11]
[362053287,1747950646696,-335.6599995,0.00033391,11]
[362054405,1747950756818,231.56,0.00013699,2]
[362054410,1747951118425,150.0,0.0001653,2]
[362054633,1747951555089,-231.56,0.00020187,2]
[362054634,1747951555110,-500.0,0.00020187,2]
[362054635,1747951555130,-66.11134545,0.00022206,2]
[362054636,1747951559087,-183.88865455,0.00022206,2]
[362054637,1747951559108,-250.0,0.00022206,2]
[362054638,1747951559129,-53.3595195,0.00026676,2]
[362054639,1747951625087,-178.2004805,0.00026676,2]
[362054640,1747951625108,-2360.75123589,0.000275,5]
[362054641,1747951638105,-320.0,0.000273,5]
[362054642,1747951638128,-537.46,0.00029993,2]
[362054643,1747951638154,-1010.60019353,0.0003001,2]
[362054644,1747951652084,-445.95513667,0.0003001,2]
[362054653,1747951831361,-471.04020002,0.000267,5]
[362054654,1747951831373,-298.1025574,0.000267,5]
[362054655,1747951831426,-1158.85724258,0.000267,5]
[362054656,1747951831437,-75.48551542,0.0003001,2]
[362054657,1747951831447,-206.0,0.00031285,2]
[362054658,1747951831457,-151.32,0.00031729,2]
[362054659,1747951831466,-1000.0,0.00031875,2]
[362054660,1747951831477,-207.4,0.00031905,2]
[362054661,1747951831486,-537.46,0.00032256,2]
[362054662,1747951831496,-153.17,0.00032257,2]
[362054663,1747951831505,-153.17,0.00032273,2]
[362054664,1747951831515,-160.51,0.0003228,2]
[362054665,1747951831524,-153.17,0.00032289,2]
[362054666,1747951831535,-153.17,0.00032305,2]
[362054667,1747951831544,-250.0,0.00032309,2]
[362054668,1747951831554,-153.17,0.00032321,2]
[362054669,1747951831563,-153.17,0.00032337,2]
[362054670,1747951831574,-153.17,0.00032353,2]
[362054671,1747951831583,-150.0,0.00032363,7]
[362054672,1747951831594,-153.17,0.0003237,2]
[362054673,1747951831604,-153.17,0.00032386,2]
[362054674,1747951831615,-180.01,0.00032393,2]
[362054675,1747951831624,-153.17,0.00032402,2]
[362054676,1747951831634,-153.17,0.00032418,2]
[362054677,1747951831644,-170.744589,0.00032676,4]
[362054678,1747951831654,-1342.0,0.00032699,3]
[362054679,1747951831663,-800.0,0.000327,11]
[362054681,1747951831672,-1700.0,0.000328,11]
[362054682,1747951831682,-2600.0,0.000329,12]
[362054684,1747951831691,-204.01341267,0.000329,27]
[362054686,1747951831702,-864.05076374,0.0003291,2]
[362054688,1747951831716,-1245.34154,0.0003306,2]
[362054690,1747951831725,-420.0,0.00033147,5]
[362054692,1747951831735,-420.0,0.00033147,5]
[362054694,1747951831745,-448.47,0.00033147,5]
[362054695,1747951831756,-420.0,0.00033147,5]
[362054696,1747951831767,-650.8,0.00033147,5]
[362054697,1747951831777,-420.0,0.00033147,5]
[362054698,1747951831787,-1795.06,0.00033147,5]
[362054699,1747951831797,-420.0,0.00033147,5]
[362054700,1747951831807,-420.0,0.00033147,5]
[362054701,1747951831817,-420.0,0.00033147,5]
[362054703,1747951831826,-420.0,0.00033147,5]
[362054705,1747951831836,-420.0,0.00033147,5]
[362054707,1747951831846,-420.0,0.00033147,5]
[362054709,1747951831855,-420.0,0.00033147,5]
[362054711,1747951831865,-420.0,0.00033147,5]
[362054712,1747951831874,-420.0,0.00033147,5]
[362054713,1747951831884,-420.0,0.00033147,5]
[362054714,1747951831894,-420.0,0.00033147,5]
[362054715,1747951831904,-420.0,0.00033147,5]
[362054716,1747951831913,-420.0,0.00033147,5]
[362054717,1747951831923,-420.0,0.00033147,5]
[362054721,1747951832248,-420.0,0.00033147,5]
[362054722,1747951832259,-420.0,0.00033147,5]
[362054723,1747951832268,-420.0,0.00033147,5]
[362054724,1747951832278,-300.0,0.00033147,5]
[362054725,1747951832288,-420.0,0.00033147,5]
[362054726,1747951832298,-420.0,0.00033147,5]
[362054727,1747951832307,-305.36232834,0.00033147,5]
[362054728,1747951832318,-420.0,0.00033147,5]
[362054729,1747951832327,-420.0,0.00033147,5]
[362054730,1747951832337,-420.0,0.00033147,5]
[362054731,1747951832347,-420.0,0.00033147,5]
[362054732,1747951832356,-430.4,0.00033147,5]
[362054733,1747951832366,-420.0,0.00033147,5]
[362054734,1747951832375,-420.0,0.00033147,5]
[362054735,1747951832385,-420.0,0.00033147,5]
[362054736,1747951832395,-381.1255307,0.00033147,5]
[362054737,1747951832404,-453.03,0.00033147,5]
[362054738,1747951832414,-420.0,0.00033147,5]
[362054739,1747951832423,-457.55,0.00033147,5]
[362054740,1747951832433,-420.0,0.00033147,5]
[362054741,1747951832442,-420.0,0.00033147,5]
[362054742,1747951832452,-420.0,0.00033147,5]
[362054743,1747951832462,-420.0,0.00033147,5]
[362054744,1747951832472,-420.0,0.00033147,5]
[362054745,1747951832482,-420.0,0.00033147,5]
[362054746,1747951832492,-420.0,0.00033147,5]
[362054747,1747951832502,-280.81384155,0.00033147,5]
[362054748,1747951832512,-420.0,0.00033147,5]
[362054749,1747951832521,-420.0,0.00033147,5]
[362054750,1747951832531,-420.0,0.00033147,5]
[362054751,1747951832541,-420.0,0.00033147,5]
[362054752,1747951832551,-420.0,0.00033147,5]
[362054753,1747951832560,-420.0,0.00033147,5]
[362054754,1747951832571,-440.6,0.00033147,5]
[362054755,1747951832581,-420.0,0.00033147,5]
[362054756,1747951832590,-420.0,0.00033147,5]
[362054757,1747951832600,-420.0,0.00033147,5]
[362054758,1747951832611,-420.0,0.00033147,5]
[362054759,1747951832620,-420.0,0.00033147,5]
[362054760,1747951832630,-420.0,0.00033148,5]
[362054761,1747951832640,-534.14597261,0.00033148,5]
[362054762,1747951832651,-420.0,0.00033148,5]
[362054763,1747951832662,-420.0,0.00033148,5]
[362054764,1747951832672,-420.0,0.00033148,5]
[362054765,1747951832683,-420.0,0.00033148,5]
[362054766,1747951832693,-420.0,0.00033148,5]
[362054767,1747951832706,-420.0,0.00033148,5]
[362054768,1747951832718,-420.0,0.00033148,5]
[362054769,1747951832728,-420.0,0.00033148,5]
[362054770,1747951832738,-420.0,0.00033148,5]
[362054771,1747951832747,-420.0,0.00033148,5]
[362054772,1747951832756,-420.0,0.00033148,5]
[362054773,1747951832767,-420.0,0.00033148,5]
[362054774,1747951832778,-420.0,0.00033148,5]
[362054775,1747951832789,-420.0,0.00033148,5]
[362054776,1747951832799,-420.0,0.00033148,5]
[362054777,1747951832808,-420.0,0.00033148,5]
[362054778,1747951832818,-420.0,0.00033148,5]
[362054779,1747951832828,-420.0,0.00033148,5]
[362054780,1747951832838,-420.0,0.00033148,5]
[362054781,1747951832847,-420.0,0.00033148,5]
[362054782,1747951832857,-420.0,0.00033148,5]
[362054783,1747951832867,-420.0,0.00033148,5]
[362054784,1747951832877,-420.0,0.00033148,5]
[362054785,1747951832887,-420.0,0.00033148,5]
[362054786,1747951832897,-420.0,0.00033148,5]
[362054787,1747951832907,-420.0,0.00033148,5]
[362054788,1747951832916,-420.0,0.00033148,5]
[362054789,1747951832926,-420.0,0.00033148,5]
[362054790,1747951832935,-420.0,0.00033148,5]
[362054791,1747951832945,-420.0,0.00033148,5]
[362054792,1747951832955,-420.0,0.00033148,5]
[362054793,1747951832964,-420.0,0.00033148,5]
[362054794,1747951832974,-420.0,0.00033148,5]
[362054795,1747951832984,-420.0,0.00033148,5]
[362054796,1747951832993,-420.0,0.00033148,5]
[362054797,1747951833003,-375.64418084,0.00033148,5]
[362054798,1747951833012,-420.0,0.00033148,5]
[362054799,1747951833023,-420.0,0.00033148,5]
[362054800,1747951833032,-300.0,0.00033148,5]
[362054801,1747951833042,-457.93362677,0.00033148,5]
[362054802,1747951833052,-420.0,0.00033148,5]
[362054803,1747951833062,-198.39984814,0.00033148,5]
[362054804,1747951833071,-420.0,0.00033148,5]
[362054805,1747951833081,-420.0,0.00033148,5]
[362054806,1747951833091,-420.0,0.00033148,5]
[362054807,1747951833100,-524.37422074,0.00033148,5]
[362054808,1747951833110,-420.0,0.00033148,5]
[362054809,1747951833120,-420.0,0.00033148,5]
[362054810,1747951833129,-420.0,0.00033148,5]
[362054811,1747951833139,-420.0,0.00033148,5]
[362054812,1747951833148,-420.0,0.00033148,5]
[362054813,1747951833158,-420.0,0.00033148,5]
[362054814,1747951833167,-420.0,0.00033148,5]
[362054815,1747951833177,-420.0,0.00033148,5]
[362054816,1747951833186,-420.0,0.00033148,5]
[362054817,1747951833197,-420.0,0.00033148,5]
[362054818,1747951833206,-420.0,0.00033148,5]
[362054819,1747951833216,-420.0,0.00033148,5]
[362054820,1747951833226,-420.0,0.00033148,5]
[362054821,1747951833236,-508.200311,0.00033148,5]
[362054822,1747951833246,-420.0,0.00033148,5]
[362054823,1747951833255,-420.0,0.00033148,5]
[362054824,1747951833266,-420.0,0.00033148,5]
[362054825,1747951833275,-420.0,0.00033148,5]
[362054826,1747951833285,-420.0,0.00033148,5]
[362054827,1747951833295,-420.0,0.00033148,5]
[362054828,1747951833304,-420.0,0.00033148,5]
[362054829,1747951833314,-420.0,0.00033148,5]
[362054830,1747951833323,-420.0,0.00033148,5]
[362054831,1747951833334,-420.0,0.00033148,5]
[362054832,1747951833345,-420.0,0.00033148,5]
[362054833,1747951833355,-420.0,0.00033148,5]
[362054834,1747951833365,-420.0,0.00033148,5]
[362054835,1747951833375,-420.0,0.00033148,5]
[362054836,1747951833384,-420.0,0.00033148,5]
[362054837,1747951833394,-420.0,0.00033148,5]
[362054838,1747951833404,-420.0,0.00033148,5]
[362054839,1747951833414,-420.0,0.00033148,5]
[362054840,1747951833425,-420.0,0.00033148,5]
[362054841,1747951833435,-420.0,0.00033148,5]
[362054842,1747951833445,-278.08739192,0.00033148,5]
[362054843,1747951833457,-231.56,0.00033165,2]
[362054844,1747951833468,-158.2770527,0.00033271,15]
[362054845,1747951833478,-5240.64730743,0.00033271,2]
[362054846,1747951833488,-215.0738,0.00033274,2]
[362054847,1747951833499,-13797.7905471,0.00033362,2]
[362054848,1747951833508,-350.638,0.00033369,35]
[362054849,1747951833518,-151.370234,0.00033369,5]
[362054850,1747951833528,-420.0,0.00033369,5]
[362054851,1747951833537,-420.0,0.00033369,5]
[362054852,1747951833547,-420.0,0.00033369,5]
[362054853,1747951833557,-503.59,0.00033369,5]
[362054854,1747951833567,-152.892026,0.00033369,5]
[362054855,1747951833577,-420.0,0.00033369,5]
[362054856,1747951833587,-420.0,0.00033369,5]
[362054857,1747951833596,-420.0,0.00033369,5]
[362054858,1747951833606,-420.0,0.00033369,5]
[362054859,1747951833616,-420.0,0.00033369,5]
[362054860,1747951833626,-922.82,0.00033369,5]
[362054861,1747951833635,-420.0,0.00033369,5]
[362054862,1747951833645,-595.32,0.00033369,5]
[362054863,1747951833655,-420.0,0.00033369,5]
[362054864,1747951833664,-420.0,0.00033369,5]
[362054865,1747951833674,-420.0,0.00033369,5]
[362054866,1747951833683,-420.0,0.00033369,5]
[362054867,1747951833693,-420.0,0.00033369,5]
[362054868,1747951833705,-516.9,0.00033369,5]
[362054869,1747951833718,-420.0,0.00033369,5]
[362054870,1747951833728,-420.0,0.00033369,5]
[362054871,1747951833738,-420.0,0.00033369,5]
[362054872,1747951833748,-420.0,0.00033369,5]
[362054873,1747951833758,-420.0,0.00033369,5]
[362054874,1747951833768,-420.0,0.00033369,5]
[362054875,1747951833778,-420.0,0.00033369,5]
[362054876,1747951833789,-420.0,0.00033369,5]
[362054877,1747951833800,-420.0,0.00033369,5]
[362054878,1747951833809,-441.15,0.00033369,5]
[362054879,1747951833819,-420.0,0.00033369,5]
[362054880,1747951833828,-420.0,0.00033369,5]
[362054881,1747951833838,-420.0,0.00033369,5]
[362054882,1747951833848,-3740.39,0.00033369,2]
[362054883,1747951833858,-420.0,0.00033369,5]
[362054884,1747951833868,-9926.67,0.00033369,5]
[362054885,1747951833878,-420.0,0.00033369,5]
[362054886,1747951833887,-420.0,0.00033369,5]
[362054887,1747951833897,-420.0,0.00033369,5]
[362054888,1747951833907,-420.0,0.00033369,5]
[362054889,1747951833916,-621.27,0.00033369,5]
[362054890,1747951833926,-420.0,0.00033369,5]
[362054891,1747951833936,-226.89504963,0.00033369,2]
[362054892,1747951833945,-420.0,0.00033369,5]
[362054893,1747951833956,-420.0,0.00033369,5]
[362054894,1747951833967,-420.0,0.00033369,5]
[362054895,1747951833976,-420.0,0.00033369,5]
[362054896,1747951833986,-351.86281561,0.00033369,2]
[362054897,1747951833996,-420.0,0.00033369,5]
[362054898,1747951834006,-420.0,0.00033369,5]
[362054899,1747951834015,-420.0,0.00033369,5]
[362054900,1747951834025,-420.0,0.00033369,5]
[362054901,1747951834035,-420.0,0.00033369,5]
[362054902,1747951834044,-769.72,0.00033369,5]
[362054903,1747951834054,-420.0,0.00033369,5]
[362054904,1747951834064,-420.0,0.00033369,5]
[362054905,1747951834074,-446.5,0.00033369,5]
[362054906,1747951834084,-420.0,0.00033369,5]
[362054907,1747951834094,-1281.64,0.00033369,5]
[362054908,1747951834103,-603.33,0.00033369,5]
[362054909,1747951834113,-420.0,0.00033369,5]
[362054910,1747951834123,-420.0,0.00033369,5]
[362054911,1747951834132,-420.0,0.00033369,5]
[362054912,1747951834142,-420.0,0.00033369,5]
[362054913,1747951834151,-420.0,0.00033369,5]
[362054914,1747951834161,-420.0,0.00033369,5]
[362054915,1747951834170,-420.0,0.00033369,5]
[362054916,1747951834179,-420.0,0.00033369,5]
[362054917,1747951834189,-420.0,0.00033369,5]
[362054918,1747951834199,-420.0,0.00033369,5]
[362054919,1747951834208,-420.0,0.00033369,5]
[362054920,1747951834218,-468.57,0.00033369,5]
[362054921,1747951834227,-50631.0,0.0003337,2]
[362054922,1747951834237,-51419.40557511,0.0003337,2]
[362054923,1747951834276,-614.97,0.0003337,2]
[362054924,1747951834288,-334.50747262,0.0003337,2]
[362054925,1747951834299,-9709.2644571,0.0003337,2]
[362054926,1747951834311,-6910.80523057,0.0003337,2]
[362054927,1747951834321,-156.0965147,0.0003337,7]
[362054928,1747951834330,-357.5274899,0.0003337,7]
[362054929,1747951834340,-154.12633076,0.0003337,7]
[362054930,1747951834350,-152.23173304,0.0003337,7]
[362054931,1747951834360,-211.10632546,0.0003337,2]
[362054932,1747951834370,-1236.38088881,0.00033371,2]
[362054933,1747951834381,-780.8729044,0.00033371,2]
[362054934,1747951834394,-905.7001952,0.00033371,2]
[362054941,1747951837529,-609.31394448,0.0003327,30]
[362054942,1747951837540,-10.52605552,0.00033369,5]
[362054943,1747951837551,-570.32394448,0.00033369,5]
[362054944,1747951837561,-420.0,0.00033369,5]
[362054945,1747951837571,-489.4880318,0.00033369,5]
[362055076,1747951841275,-10.5119682,0.00033369,5]
[362055077,1747951841284,-420.0,0.00033369,5]
[362055078,1747951841293,-500.0,0.00033369,5]
[362055079,1747951841302,-420.0,0.00033369,5]
[362055080,1747951841311,-420.0,0.00033369,5]
[362055081,1747951841321,-420.0,0.00033369,5]
[362055082,1747951841330,-5495.61080369,0.00033371,2]
[362055083,1747951841341,-2080.39096031,0.00033371,2]
[362055084,1747951841363,-259.58012086,0.00033371,2]
[362055176,1747951844786,-420.0,0.00033369,5]
[362055177,1747951844797,-1749.06,0.00033369,5]
[362055178,1747951844808,-420.0,0.00033369,5]
[362055179,1747951844817,-210123.39779164,0.00033371,2]
[362055180,1747951844833,-27478.29618209,0.00033371,2]
[362055181,1747951844842,-3627.64121222,0.00033371,2]
[362055182,1747951844853,-441.18848038,0.00033371,2]
[362055184,1747951845384,-22235.54315247,0.00033371,2]
[362055185,1747951845450,-4838.25719989,0.00033371,2]
[362055187,1747951845566,-1317.09999999,0.00033371,2]
[362055188,1747951845852,-420.0,0.00033369,2]
[362055189,1747951845861,-209.04998635,0.00033371,2]
[362055589,1747951859362,220.44,0.00013699,2]
[362055621,1747952355561,250.0,0.00015,2]
[362055639,1747952736204,-515.53714943,0.00017,2]
[362055640,1747952821858,-157.54,0.000168,6]
[362055641,1747952836200,-405.497125,0.00016716,2]
[362055642,1747952836224,-442.46,0.000168,6]
[362055643,1747952836246,-1200.0,0.000169,6]
[362055644,1747952836268,-80.00211688,0.00016999,2]
[362055645,1747952850085,-219.99788312,0.00016999,2]
[362055646,1747952850110,-150.0,0.00016999,2]
[362055647,1747952850140,-500.0,0.00016999,2]
[362055648,1747952850168,-10.17619211,0.00016999,2]
[362055649,1747952851113,-154.88031928,0.00016999,2]
[362055650,1747952851140,-157.22821303,0.00017,2]
[362055651,1747952944266,225.27,0.00013699,2]
[362055659,1747953031647,-570.0,0.00016999,2]
[362055660,1747953031657,-3874.38827816,0.00017,2]
[362055661,1747953031671,-255.49699607,0.00017,2]
[362055662,1747953031732,-1188.04007198,0.00017,2]
[362056218,1747953037560,-211.10632547,0.0001699,2]
[362056220,1747953037571,-512.95372944,0.00017,2]
[362056236,1747953037709,-9578.06072568,0.00017,2]
[362056277,1747953039779,-1731.34512391,0.00017,2]
[362056278,1747953039933,-640.08419563,0.00017,2]
[362056279,1747953040080,-190705.62124527,0.00017,2]
[362056286,1747953042717,-390.87486675,0.00017,2]
[362056287,1747953042794,-5028.81714322,0.00017,2]
[362056288,1747953042875,-212763.78891841,0.00017,2]
[362056289,1747953042954,-922.64362892,0.00017,2]
[362056293,1747953045504,-222108.6619934,0.00017,2]
[362056294,1747953045587,-2059.30202835,0.00017,2]
[362056295,1747953045741,-1570.16885156,0.00017,2]
[362056296,1747953045900,-1236.835,0.00017,2]
[362056300,1747953591764,-806.462,0.0001666,2]
[362056301,1747953591788,-161.14194058,0.000169,2]
[362056302,1747953591810,-944.0,0.00016989,2]
[362056303,1747953591832,-8088.39605942,0.0001699,2]
[362056304,1747953606898,-3459.95944061,0.0001699,2]
[362056305,1747953606923,-814.51153008,0.0001699,2]
[362056306,1747953606949,-1000.0,0.00016999,2]
[362056307,1747953606977,-152.6,0.00016999,2]
[362056308,1747953607010,-365.10715537,0.00016999,2]
[362056309,1747953607041,-614.09345001,0.00016999,2]
[362056310,1747953607067,-3593.72842393,0.00017,2]
[362056311,1747953607759,-10000.0,0.00017,2]
[362056312,1747953608526,-1603.03,0.0001699,2]
[362056313,1747953608552,-8396.97,0.00017,2]
[362056314,1747953609081,-1603.03,0.0001699,2]
[362056315,1747953609105,-8396.97,0.00017,2]
[362056316,1747953609659,-10000.0,0.00017,2]
[362056317,1747953610015,-10000.0,0.00017,2]
[362056318,1747953613101,-597.04476151,0.000169,2]
[362056319,1747953613123,-490.51285474,0.00016999,2]
[362056320,1747953613145,-8912.44238375,0.00017,2]
[362056321,1747953613493,-10000.0,0.00017,2]
[362056322,1747953616476,-10000.0,0.00017,2]
[362056323,1747953617048,-10000.0,0.00017,2]
[362056324,1747953617384,-10000.0,0.00017,2]
[362056325,1747953617801,-10000.0,0.00017,2]
[362056326,1747953618328,-10000.0,0.00017,2]
[362056327,1747953618913,-10000.0,0.00017,2]
[362056328,1747953619337,-10000.0,0.00017,2]
[362056329,1747953619534,-10000.0,0.00017,2]
[362056330,1747953620137,-10000.0,0.00017,2]
[362056331,1747953620779,-10000.0,0.00017,2]
[362056332,1747953621207,-10000.0,0.00017,2]
[362056333,1747953621847,-10000.0,0.00017,2]
[362056334,1747953622433,-10000.0,0.00017,2]
[362056335,1747953622656,-10000.0,0.00017,2]
[362056336,1747953623263,-10000.0,0.00017,2]
[362056337,1747953623788,-10000.0,0.00017,2]
[362056338,1747953624091,-10000.0,0.00017,2]
[362056339,1747953624644,-10000.0,0.00017,2]
[362056340,1747953625157,-10000.0,0.00017,2]
[362056341,1747953625461,-10000.0,0.00017,2]
[362056342,1747953625755,-10000.0,0.00017,2]
[362056343,1747953626408,-10000.0,0.00017,2]
[362056344,1747953627000,-10000.0,0.00017,2]
[362056345,1747953627293,-10000.0,0.00017,2]
[362056346,1747953627695,-10000.0,0.00017,2]
[362056347,1747953627992,-10000.0,0.00017,2]
[362056348,1747953628576,-10000.0,0.00017,2]
[362056349,1747953629124,-10000.0,0.00017,2]
[362056350,1747953629215,-10000.0,0.00017,2]
[362056351,1747953629847,-10000.0,0.00017,2]
[362056352,1747953630483,-10000.0,0.00017,2]
[362056353,1747953630767,-10000.0,0.00017,2]
[362056354,1747953631119,-10000.0,0.00017,2]
[362056355,1747953632106,-10000.0,0.00017,2]
[362056356,1747953632407,-10000.0,0.00017,2]
[362056357,1747953632739,-10000.0,0.00017,2]
[362056358,1747953633087,-8164.90902127,0.000169,2]
[362056359,1747953633112,-1835.09097873,0.00017,2]
[362056360,1747953633673,-300.0,0.00016999,2]
[362056361,1747953633696,-9700.0,0.00017,2]
[362056362,1747953633996,-10000.0,0.00017,2]
[362056363,1747953634336,-10000.0,0.00017,2]
[362056364,1747953634891,-10000.0,0.00017,2]
[362056365,1747953635490,-10000.0,0.00017,2]
[362056366,1747953636121,-10000.0,0.00017,2]
[362056367,1747953636619,-10000.0,0.00017,2]
[362056368,1747953637157,-10000.0,0.00017,2]
[362056369,1747953637773,-10000.0,0.00017,2]
[362056370,1747953638374,-10000.0,0.00017,2]
[362056371,1747953638668,-10000.0,0.00017,2]
[362056372,1747953638987,-10000.0,0.00017,2]
[362056373,1747953639568,-10000.0,0.00017,2]
[362056374,1747953640174,-10000.0,0.00017,2]
[362056375,1747953640779,-10000.0,0.00017,2]
[362056376,1747953641308,-10000.0,0.00017,2]
[362056377,1747953641650,-10000.0,0.00017,2]
[362056378,1747953642646,-10000.0,0.00017,2]
[362056379,1747953642910,-10000.0,0.00017,2]
[362056380,1747953643335,-10000.0,0.00017,2]
[362056381,1747953643834,-10000.0,0.00017,2]
[362056382,1747953644401,-10000.0,0.00017,2]
[362056383,1747953644794,-10000.0,0.00017,2]
[362056384,1747953645260,-10000.0,0.00017,2]
[362056385,1747953645662,-10000.0,0.00017,2]
[362056386,1747953646893,-10000.0,0.00017,2]
[362056387,1747953649819,-10000.0,0.00017,2]
[362056388,1747953758931,150.0,0.0001653,2]
[362056389,1747953947119,-99.40893048,0.00017,2]
[362056390,1747953947140,-200.0,0.00017,2]
[362056391,1747953947170,-250.070806,0.00018277,2]
[362056392,1747953947191,-152.6,0.00018369,2]
[362056393,1747953947212,-23.96669332,0.000187,2]
[362056394,1747953952234,-226.03330668,0.000187,2]
[362056395,1747953952257,-200.0,0.000187,2]
[362056396,1747953952281,-808.93675162,0.00018955,2]
[362056397,1747953997094,-391.06324838,0.00018955,2]
[362056398,1747953997116,-124.08480822,0.00019639,2]
[362056399,1747953998419,239.21,0.00013699,2]
[362056401,1747954028160,-168.05281277,0.00019639,2]
[362056402,1747954045145,-50.14971005,0.00019639,2]
[362056403,1747954045167,-152.6,0.00019739,2]
[362056404,1747954045190,-239.21,0.00020187,2]
[362056405,1747954045211,-152.6,0.00021109,2]
[362056406,1747954045232,-200.85680009,0.00022371,2]
[362056407,1747954047081,-2288.09319991,0.00022371,2]
[362056408,1747954047102,-152.6,0.00022479,2]
[362056409,1747954047136,-1076.0,0.00022846,2]
[362056410,1747954047161,-165.37,0.0002286,30]
[362056411,1747954047187,-151.33,0.00023099,2]
[362056412,1747954047209,-3586.0,0.000231,5]
[362056413,1747954047232,-173.0,0.00023135,2]
[362056414,1747954047254,-150.0,0.00023251,7]
[362056415,1747954047276,-160.51,0.00023836,2]
[362056416,1747954047298,-152.6,0.00023849,2]
[362056417,1747954047327,-205.64423766,0.000239,10]
[362056418,1747954047349,-300.0,0.00024047,2]
[362056419,1747954047372,-767.7062214,0.00024048,2]
[362056420,1747954048082,-299.25429789,0.00024048,2]
[362056426,1747954158161,250.0,0.00015,2]
[362056440,1747954231888,-300.0,0.00017,2]
[362056441,1747954231898,-350.0,0.00019,2]
[362056442,1747954231908,-200.0,0.00024048,2]
[362056443,1747954231919,-9.03948071,0.00024048,2]
[362056444,1747954231928,-6447.9056024,0.00024148,2]
[362056445,1747954231938,-500.0,0.00024164,2]
[362056446,1747954231948,-515.84657799,0.00024773,2]
[362056447,1747954231958,-500.0,0.00024773,2]
[362056448,1747954231967,-500.0,0.00024773,2]
[362056449,1747954231977,-500.0,0.000248,2]
[362056450,1747954231987,-1000.0,0.00024899,2]
[362056451,1747954231998,-319.88787741,0.00025214,2]
[362056452,1747954232008,-152.6,0.00025218,2]
[362056453,1747954232018,-1076.0,0.00025314,2]
[362056454,1747954232027,-205.64423758,0.000259,14]
[362056455,1747954232037,-8942.19564037,0.00026363,2]
[362056456,1747954232049,-14082.92392796,0.00026363,2]
[362056457,1747954232064,-1105.0101586,0.00026363,2]
[362056458,1747954232075,-1077.9794713,0.00026363,2]
[362056459,1747954232087,-4803.09692,0.00026363,2]
[362056460,1747954232102,-1114.35640769,0.00026363,2]
[362056484,1747954237657,-1156.63166457,0.00026363,2]
[362056492,1747954237755,-3275.82137486,0.00026363,2]
[362056493,1747954237853,-4343.70443465,0.00026363,2]
[362056494,1747954237862,-150.0,0.00026399,2]
[362056495,1747954237871,-502.54862324,0.000264,2]
[362056496,1747954237880,-470.25669809,0.000264,2]
[362056497,1747954237890,-500.0,0.000264,2]
[362056498,1747954237899,-500.0,0.000264,2]
[362056499,1747954237908,-1076.0,0.0002658,2]
[362056500,1747954237917,-152.6,0.00026588,2]
[362056501,1747954237926,-239.21,0.00026676,2]
[362056502,1747954237935,-1000.0,0.00026948,2]
[362056503,1747954237944,-205.64423758,0.00027208,16]
[362056504,1747954237954,-1000.0,0.00027431,2]
[362056505,1747954237963,-152.58000644,0.00027909,5]